bitfinex/quotes_BTCUSD_20241205
["timestamp","ask_amount","ask_price","bid_price","bid_amount"]
[1733440959649,0.13,97085.0,97076.0,0.10503154]
[1733440960295,0.13,97085.0,97083.0,0.10503154]
[1733440960535,0.12438199,97085.0,97083.0,0.10503154]
[1733440960756,0.00055325,97086.0,97083.0,0.10503154]
[1733440962259,5.000863,97130.0,97075.0,0.003098]
[1733440962260,5.000863,97130.0,97086.0,0.023]
[1733440962466,5.000863,97130.0,97102.0,0.10503154]
[1733440962722,5.000863,97130.0,97075.0,0.003098]
[1733440962723,0.00128684,97129.0,97087.0,0.10503154]
[1733440962924,0.00128684,97129.0,97026.0,0.0508]
[1733440962925,0.10503154,97114.0,97076.0,0.10503154]
[1733440963129,0.00128684,97129.0,97077.0,0.10503154]
[1733440963340,0.0491,97113.0,97044.0,0.02954359]
[1733440963583,0.0491,97113.0,97026.0,0.0508]
[1733440963584,0.0491,97113.0,97078.0,0.10503154]
[1733440963794,0.0491,97113.0,97084.0,0.00303367]
[1733440964044,0.0491,97113.0,97085.0,0.10503154]
[1733440965356,0.0491,97113.0,97097.0,0.10503154]
[1733440967102,0.002,97115.0,97110.0,0.10503154]
[1733440967783,0.002,97115.0,97108.0,0.00312827]
[1733440967784,0.002,97115.0,97114.0,0.10503154]
[1733440968186,0.002,97115.0,97062.0,0.05129723]
[1733440968408,0.002,97115.0,97080.0,0.10503154]
[1733440968648,0.1252,97114.0,97080.0,0.10503154]
[1733440969315,0.0489,97114.0,97094.0,0.00304908]
[1733440969561,0.0489,97114.0,97108.0,0.10503154]
[1733440970232,0.002,97115.0,97094.0,0.00304908]
[1733440970233,0.002,97115.0,97113.0,0.10503154]
[1733440971116,0.0008615,97120.0,97114.0,0.10473154]
[1733440971393,0.0008615,97120.0,97119.0,0.10503154]
[1733440973386,0.0008615,97120.0,97119.0,0.12797432]
[1733440974123,4.9503721,97130.0,97125.0,0.15]
[1733440974340,4.92052495,97130.0,97129.0,0.12803154]
[1733440974556,4.89370577,97130.0,97129.0,0.41149874]
[1733440974786,4.89370577,97130.0,97129.0,0.13648499]
[1733440974995,4.89370577,97130.0,97129.0,0.26298573]
[1733440975224,4.89320577,97130.0,97129.0,0.16261573]
[1733440975482,4.89320577,97130.0,97129.0,0.31845973]
[1733440975895,4.85860059,97130.0,97129.0,0.31845973]
[1733440976110,4.80727296,97130.0,97129.0,0.31845973]
[1733440976316,4.80727296,97130.0,97129.0,0.10816228]
[1733440976545,4.80727296,97130.0,97129.0,0.85185996]
[1733440976744,4.80727296,97130.0,97129.0,0.10816228]
[1733440977391,4.80727296,97130.0,97129.0,0.13673196]
[1733440977833,4.80727296,97130.0,97129.0,0.27556167]
[1733440978060,4.80727296,97130.0,97129.0,0.29856167]
[1733440978280,4.80727296,97130.0,97129.0,0.44968032]
[1733440978281,3.67163395,97130.0,97129.0,0.44968032]
[1733440978494,2.50722118,97130.0,97129.0,1.4441022]
[1733440978724,1.54445566,97130.0,97129.0,1.38904787]
[1733440978940,0.79465887,97130.0,97129.0,1.36492922]
[1733440979149,0.34142025,97130.0,97129.0,1.36492922]
[1733440979357,4.97520646,97170.0,97150.0,0.15]
[1733440979588,4.97520646,97170.0,97169.0,0.10503154]
[1733440980030,4.97520646,97170.0,97169.0,0.12669076]
[1733440980474,4.8212005,97170.0,97169.0,0.12669076]
[1733440980945,4.6612229,97170.0,97169.0,0.35890476]
[1733440981155,4.50124029,97170.0,97169.0,0.24519654]
[1733440981375,4.39856096,97170.0,97169.0,0.10503154]
[1733440981845,4.23634697,97170.0,97169.0,0.10503154]
[1733440982027,4.07413101,97170.0,97169.0,0.10503154]
[1733440982226,3.97145168,97170.0,97169.0,0.10503154]
[1733440982439,3.76609098,97170.0,97169.0,0.10503154]
[1733440982652,3.7147889,97170.0,97169.0,0.14206339]
[1733440983608,3.7147889,97170.0,97169.0,0.03391249]
[1733440983859,3.7939889,97170.0,97169.0,0.03391249]
[1733440984491,3.7939889,97170.0,97169.0,0.02391249]
[1733440984737,3.8407889,97170.0,97121.0,0.05108004]
[1733440984988,3.8407889,97170.0,97124.0,0.10503154]
[1733440985154,0.18551792,97169.0,97124.0,0.10503154]
[1733440985366,0.18551792,97169.0,97120.0,0.0009801]
[1733440985367,0.10503154,97165.0,97120.0,0.0009801]
[1733440985602,0.0468,97160.0,97121.0,0.10503154]
[1733440985825,0.0468,97160.0,97075.0,0.16]
[1733440985826,0.15,97132.0,97075.0,0.01]
[1733440986071,0.0792,97124.0,97076.0,0.10503154]
[1733440986260,0.15311872,97123.0,97076.0,0.24064154]
[1733440986512,0.15,97119.0,97076.0,0.10503154]
[1733440986743,0.0792,97108.0,97076.0,0.10503154]
[1733440986975,0.10503154,97107.0,97076.0,0.10601254]
[1733440987654,0.0792,97130.0,97081.0,0.10503154]
[1733440987860,0.0792,97130.0,97099.0,0.10503154]
[1733440988487,0.0792,97130.0,97106.0,0.00314695]
[1733440989359,0.1063185,97129.0,97106.0,0.00314695]
[1733440989561,0.1063185,97129.0,97099.0,0.0009852]
[1733440989779,0.1063185,97129.0,97099.0,0.00304927]
[1733440991172,0.15,97120.0,97062.0,0.05129723]
[1733440991398,0.15,97113.0,97076.0,0.00315188]
[1733440991626,0.15,97108.0,97076.0,0.00315188]
[1733440991861,0.10631897,97107.0,97076.0,0.00315188]
[1733440992069,0.10631897,97107.0,97090.0,0.0017214]
[1733440992492,0.10503154,97107.0,97090.0,0.0017214]
[1733440994017,0.0792,97112.0,97090.0,0.0017214]
[1733440994260,0.0792,97112.0,97091.0,0.10503154]
[1733440994916,0.0792,97112.0,97091.0,0.10601874]
[1733440995350,0.023,97154.0,97092.0,0.0010297]
[1733440995580,0.10503154,97143.0,97093.0,0.10503154]
[1733440995793,0.00086569,97142.0,97094.0,0.00102967]
[1733440996009,0.00086569,97142.0,97095.0,0.00102967]
[1733440996010,0.10503154,97141.0,97095.0,0.00102967]
[1733440996222,0.00086569,97140.0,97095.0,0.00102967]
[1733440996434,0.10503154,97139.0,97095.0,0.10606121]
[1733440996711,0.00086569,97138.0,97095.0,0.10606121]
[1733440996937,0.10503154,97137.0,97095.0,0.10606121]
[1733440997187,0.00086569,97136.0,97095.0,0.00202947]
[1733440997395,0.10503154,97127.0,97095.0,0.0009998]
[1733440997599,0.00086569,97126.0,97090.0,0.0017214]
[1733440997819,0.10503154,97125.0,97090.0,0.0017214]
[1733440998071,0.00086569,97124.0,97090.0,0.0017214]
[1733440998271,0.1284,97106.0,97090.0,0.0017214]
[1733440998531,0.10589723,97105.0,97090.0,0.0017214]
[1733440998767,0.10503154,97105.0,97090.0,0.0017214]
[1733440999832,0.1284,97106.0,97090.0,0.0017214]
[1733441000480,0.00086569,97105.0,97090.0,0.0017214]
[1733441000706,0.10503154,97105.0,97090.0,0.0017214]
[1733441002230,0.0799,97103.0,97027.0,0.05123054]
[1733441002464,0.13677376,97102.0,97051.0,0.10503154]
[1733441002689,0.13677376,97102.0,97028.0,0.05125831]
[1733441002690,0.10503154,97092.0,97062.0,0.0009871]
[1733441002964,0.18620716,97091.0,97029.0,0.00103006]
[1733441003163,0.0485,97090.0,97029.0,0.00103006]
[1733441003365,0.10630716,97089.0,97052.0,0.00304813]
[1733441003587,0.10630716,97089.0,97053.0,0.00103014]
[1733441003795,0.10630716,97089.0,97054.0,0.10503154]
[1733441004034,0.10503154,97082.0,97055.0,0.00103001]
[1733441004273,0.10503154,97082.0,97028.0,0.00103001]
[1733441004479,0.00127562,97081.0,97028.0,0.00103001]
[1733441004713,0.10503154,97080.0,97045.0,0.00309929]
[1733441004945,0.00127562,97079.0,97045.0,0.00309929]
[1733441005152,0.10503154,97078.0,97045.0,0.00309929]
[1733441005361,0.10503154,97078.0,97025.0,0.05245958]
[1733441005362,0.00127562,97077.0,97030.0,0.004116]
[1733441005570,0.10503154,97076.0,97031.0,0.00103031]
[1733441005778,0.10503154,97076.0,97007.0,0.049]
[1733441005779,0.00127562,97075.0,97025.0,0.05245966]
[1733441005988,0.18493154,97074.0,97025.0,0.00103034]
[1733441006165,0.00127562,97073.0,97025.0,0.05245966]
[1733441006427,0.0485,97071.0,97025.0,0.00103034]
[1733441006642,0.10630716,97070.0,97025.0,0.00103034]
[1733441006864,0.10630716,97070.0,96997.0,0.00103042]
[1733441007068,0.10580716,97070.0,96997.0,0.05280438]
[1733441007278,0.10503154,97067.0,96997.0,0.05280438]
[1733441007492,0.00127562,97066.0,96997.0,0.05280438]
[1733441007739,0.0799,97064.0,96997.0,0.05280438]
[1733441007912,0.10630716,97063.0,97025.0,0.00306711]
[1733441008591,0.10503154,97051.0,96997.0,0.00103042]
[1733441008814,0.0485,97050.0,96998.0,0.00103066]
[1733441009037,0.10630716,97049.0,97025.0,0.01238859]
[1733441009310,0.10630716,97049.0,97008.0,0.00309825]
[1733441009311,0.10630716,97049.0,97009.0,0.00103067]
[1733441009533,0.10630716,97049.0,96990.0,0.0017222]
[1733441009534,0.10503154,97045.0,96990.0,0.0017222]
[1733441009768,0.00127562,97044.0,96998.0,0.0121422]
[1733441009986,0.10503154,97038.0,96991.0,0.00103071]
[1733441010206,0.10503154,97028.0,96990.0,0.01400762]
[1733441010420,0.0799,97030.0,96990.0,0.01400762]
[1733441010421,0.10503154,97013.0,96990.0,0.01400762]
[1733441010635,0.10503154,97009.0,96990.0,0.0017222]
[1733441010841,0.10503154,97007.0,96990.0,0.0017222]
[1733441011060,0.10503154,96991.0,96980.0,0.01368374]
[1733441011264,0.10503154,96984.0,96980.0,0.0017236]
[1733441011488,0.00127562,96983.0,96980.0,0.0017236]
[1733441011699,0.10503154,96981.0,96980.0,0.0017236]
[1733441012356,0.10503154,96981.0,96938.0,0.00301038]
[1733441012571,0.00127562,96980.0,96938.0,0.00301038]
[1733441012784,0.10503154,96979.0,96970.0,0.0417236]
[1733441012998,0.00127562,96978.0,96970.0,0.0417236]
[1733441013202,0.10503154,96977.0,96970.0,0.0417236]
[1733441013481,0.00127562,96976.0,96970.0,0.0017236]
[1733441013732,0.10503154,96975.0,96970.0,0.0017236]
[1733441013955,0.00127562,96974.0,96970.0,0.0017236]
[1733441014175,0.10503154,96973.0,96970.0,0.0017236]
[1733441014403,0.00127562,96972.0,96970.0,0.0017236]
[1733441014614,0.10503154,96971.0,96970.0,0.0017236]
[1733441015493,0.22923154,96971.0,96920.0,0.0017252]
[1733441015720,0.10503154,96961.0,96920.0,0.0017252]
[1733441016148,0.10503154,96955.0,96920.0,0.0017252]
[1733441016358,0.1242,96971.0,96920.0,0.0017252]
[1733441016359,0.10630716,96954.0,96920.0,0.0017252]
[1733441016563,0.0787,96953.0,96931.0,0.01184391]
[1733441016779,0.00127562,96952.0,96920.0,0.0017252]
[1733441017029,0.10503154,96951.0,96920.0,0.0017252]
[1733441017250,0.10503154,96944.0,96920.0,0.0017252]
[1733441017478,0.10503154,96941.0,96920.0,0.0017252]
[1733441017703,0.00127562,96940.0,96920.0,0.0017252]
[1733441017961,0.10503154,96927.0,96920.0,0.0017252]
[1733441018171,0.10503154,96924.0,96865.0,0.004122]
[1733441018394,0.10503154,96899.0,96865.0,0.004122]
[1733441018591,0.10503154,96899.0,96860.0,0.0017254]
[1733441018592,0.12547562,96898.0,96860.0,0.0017254]
[1733441018821,0.12547562,96898.0,96869.0,0.01194037]
[1733441018822,0.10503154,96897.0,96869.0,0.01194037]
[1733441019031,0.00127562,96896.0,96869.0,0.01194037]
[1733441019234,0.00127562,96896.0,96871.0,0.00103224]
[1733441019411,0.10503154,96882.0,96869.0,0.01194037]
[1733441019669,0.00127562,96881.0,96869.0,0.01194037]
[1733441019881,0.10630716,96881.0,96869.0,0.01194037]
[1733441020332,0.10503154,96881.0,96869.0,0.01194037]
[1733441020560,0.00127562,96880.0,96869.0,0.01194037]
[1733441020804,0.10503154,96879.0,96869.0,0.01194037]
[1733441021068,0.00127562,96878.0,96869.0,0.01194037]
[1733441021277,0.10503154,96877.0,96869.0,0.01194037]
[1733441021493,0.1242,96898.0,96869.0,0.01194037]
[1733441021699,0.10503154,96888.0,96869.0,0.01194037]
[1733441021942,0.00127562,96887.0,96869.0,0.01194037]
[1733441022160,0.1242,96898.0,96869.0,0.01194037]
[1733441022161,0.10630716,96886.0,96869.0,0.01194037]
[1733441022379,0.10503154,96879.0,96860.0,0.0017254]
[1733441022589,0.00127562,96878.0,96860.0,0.0017254]
[1733441022803,0.10503154,96877.0,96860.0,0.0017254]
[1733441023015,0.10503154,96877.0,96868.0,0.01149735]
[1733441024312,0.18373154,96877.0,96860.0,0.0017254]
[1733441024560,0.18373154,96877.0,96867.0,0.01192007]
[1733441024774,0.00127562,96876.0,96867.0,0.01192007]
[1733441024993,0.0455,96898.0,96867.0,0.01192007]
[1733441024994,0.0787,96896.0,96867.0,0.01192007]
[1733441025264,0.10630716,96895.0,96871.0,0.00103211]
[1733441025448,0.10630716,96895.0,96867.0,0.01192007]
[1733441025668,0.10630716,96895.0,96876.0,0.01]
[1733441025888,0.10503154,96886.0,96876.0,0.01]
[1733441026095,0.10503154,96884.0,96876.0,0.01]
[1733441026305,0.01152984,96921.0,96860.0,0.0017254]
[1733441026306,0.1242,96876.0,96860.0,0.0017254]
[1733441026588,0.10503154,96861.0,96860.0,0.0017254]
[1733441026755,0.10503154,96861.0,96843.0,0.01189531]
[1733441026961,0.10503154,96861.0,96820.0,0.00477222]
[1733441027172,0.10630716,96860.0,96821.0,0.00103258]
[1733441027383,0.10503154,96857.0,96821.0,0.00103258]
[1733441027612,0.00127562,96856.0,96830.0,0.0137775]
[1733441027835,0.10503154,96855.0,96830.0,0.0017254]
[1733441028055,0.00127562,96854.0,96830.0,0.0017254]
[1733441028281,0.10503154,96853.0,96830.0,0.0017254]
[1733441028541,0.10503154,96849.0,96830.0,0.0017254]
[1733441028749,0.00127562,96848.0,96830.0,0.0017254]
[1733441028963,0.1242,96876.0,96830.0,0.0017254]
[1733441028964,0.00127562,96875.0,96830.0,0.0017254]
[1733441029186,0.10503154,96868.0,96830.0,0.0017254]
[1733441029406,0.10630716,96867.0,96830.0,0.0017254]
[1733441029644,0.10503154,96864.0,96830.0,0.0017254]
[1733441029857,0.00127562,96863.0,96831.0,0.00103266]
[1733441030068,0.10503154,96862.0,96831.0,0.00103266]
[1733441030277,0.00127562,96861.0,96830.0,0.0017254]
[1733441030488,0.10503154,96859.0,96830.0,0.0017254]
[1733441030705,0.00127562,96858.0,96830.0,0.0017254]
[1733441030901,0.10503154,96857.0,96830.0,0.0017254]
[1733441031141,0.00127562,96856.0,96830.0,0.0017254]
[1733441031352,0.10503154,96855.0,96830.0,0.01378939]
[1733441031560,0.00127562,96854.0,96830.0,0.01378939]
[1733441031791,0.10503154,96853.0,96830.0,0.01378939]
[1733441032002,0.1242,96876.0,96830.0,0.01378939]
[1733441032003,0.00127562,96875.0,96830.0,0.11985342]
[1733441032250,0.10630716,96874.0,96831.0,0.00103249]
[1733441032427,0.10630716,96874.0,96830.0,0.11985342]
[1733441032907,0.10630716,96874.0,96831.0,0.10606403]
[1733441033353,0.10503154,96874.0,96836.0,0.15]
[1733441033603,0.10503154,96874.0,96830.0,0.01378939]
[1733441033604,0.00127562,96873.0,96837.0,0.10606393]
[1733441033823,0.10503154,96872.0,96837.0,0.10606393]
[1733441034028,0.00127562,96871.0,96837.0,0.00103239]
[1733441034243,0.10503154,96870.0,96839.0,0.00308671]
[1733441034458,0.00127562,96869.0,96839.0,0.00308671]
[1733441034675,0.10503154,96868.0,96839.0,0.00308671]
[1733441034867,0.00127562,96867.0,96839.0,0.00308671]
[1733441035125,0.10503154,96866.0,96839.0,0.00308671]
[1733441035330,0.00127562,96865.0,96840.0,0.00103253]
[1733441035573,0.10503154,96864.0,96839.0,0.00308671]
[1733441035782,0.00127562,96863.0,96839.0,0.00308671]
[1733441036020,0.10503154,96862.0,96839.0,0.00308671]
[1733441036258,0.00127562,96861.0,96839.0,0.00308671]
[1733441036464,0.00127562,96861.0,96830.0,0.01378939]
[1733441036465,0.18013154,96860.0,96830.0,0.01378939]
[1733441036735,0.00127562,96859.0,96830.0,0.01378939]
[1733441036953,0.10503154,96858.0,96830.0,0.01378939]
[1733441037168,0.00127562,96857.0,96830.0,0.01378939]
[1733441037387,0.10503154,96856.0,96830.0,0.01378939]
[1733441037612,0.00127562,96855.0,96830.0,0.01378939]
[1733441037837,0.10503154,96854.0,96830.0,0.01378939]
[1733441038050,0.00127562,96853.0,96830.0,0.01378939]
[1733441038259,0.10503154,96847.0,96830.0,0.01378939]
[1733441038470,0.00127562,96846.0,96830.0,0.01378939]
[1733441038674,0.10503154,96845.0,96830.0,0.01378939]
[1733441038882,0.00127562,96859.0,96831.0,0.00103274]
[1733441039093,0.10503154,96858.0,96830.0,0.01378939]
[1733441039306,0.00127562,96857.0,96831.0,0.00103265]
[1733441039514,0.10503154,96856.0,96830.0,0.01378939]
[1733441039717,0.00127562,96855.0,96830.0,0.01378939]
[1733441039929,0.00127562,96855.0,96831.0,0.10503154]
[1733441040146,0.0751,96869.0,96831.0,0.00103263]
[1733441040147,0.00127562,96868.0,96831.0,0.00103263]
[1733441040341,0.10630716,96867.0,96831.0,0.00103263]
[1733441040883,0.00127562,96869.0,96837.0,0.15]
[1733441041157,0.0008676,96880.0,96838.0,0.10606392]
[1733441041158,0.00127562,96879.0,96838.0,0.10606392]
[1733441041309,0.00127562,96879.0,96838.0,0.10652116]
[1733441041310,0.10503154,96878.0,96838.0,0.10652116]
[1733441041517,0.10503154,96871.0,96838.0,0.00045724]
[1733441041732,0.10503154,96871.0,96830.0,0.01424663]
[1733441041733,0.00127562,96870.0,96830.0,0.01424663]
[1733441042093,0.10503154,96868.0,96830.0,0.01424663]
[1733441042320,0.00127562,96867.0,96830.0,0.01424663]
[1733441042501,0.10503154,96866.0,96831.0,0.00103262]
[1733441042701,0.00127562,96865.0,96831.0,0.00148986]
[1733441042940,0.10503154,96864.0,96832.0,0.00314414]
[1733441043148,0.00127562,96863.0,96833.0,0.0010325]
[1733441043376,0.0008676,96880.0,96840.0,0.15]
[1733441043645,0.10630716,96879.0,96841.0,0.1060639]
[1733441043813,0.10630716,96879.0,96841.0,0.00103236]
[1733441044031,0.10630716,96879.0,96848.0,0.00311572]
[1733441044924,0.10630716,96879.0,96833.0,0.00103232]
[1733441045520,0.10503154,96878.0,96833.0,0.00103232]
[1733441045735,0.00127562,96877.0,96833.0,0.00103232]
[1733441045939,0.10503154,96876.0,96833.0,0.00103232]
[1733441046148,0.03305189,96875.0,96867.0,0.8239926]
[1733441046349,0.13680781,96874.0,96832.0,0.00314414]
[1733441046566,0.03305189,96873.0,96833.0,0.0010325]
[1733441046798,0.0008676,96880.0,96833.0,0.0010325]
[1733441046799,0.10630716,96872.0,96833.0,0.25606404]
[1733441047493,0.10630716,96872.0,96833.0,0.0010325]
[1733441047765,0.10630716,96872.0,96834.0,0.10503154]
[1733441047925,0.10630716,96872.0,96835.0,0.00103243]
[1733441048182,0.03184624,96871.0,96836.0,0.00103243]
[1733441048383,0.10630716,96870.0,96836.0,0.00103243]
[1733441048597,0.03184624,96869.0,96836.0,0.00103243]
[1733441048810,0.10630716,96868.0,96836.0,0.00103243]
[1733441049017,0.03184624,96867.0,96836.0,0.00103243]
[1733441049251,0.10503154,96866.0,96836.0,0.00103243]
[1733441049479,0.03312186,96865.0,96836.0,0.00103243]
[1733441049696,0.03184624,96864.0,96836.0,0.00103243]
[1733441050191,0.10503154,96866.0,96836.0,0.00103243]
[1733441050192,0.03184624,96863.0,96836.0,0.00103243]
[1733441050418,0.10503154,96866.0,96836.0,0.00103243]
[1733441050419,0.03312186,96862.0,96836.0,0.00103243]
[1733441050647,0.03184624,96861.0,96836.0,0.00103243]
[1733441050894,0.03184624,96860.0,96836.0,0.00103243]
[1733441051103,0.00127562,96865.0,96836.0,0.00103243]
[1733441051104,0.03184624,96859.0,96836.0,0.00103243]
[1733441051323,0.10503154,96866.0,96836.0,0.00103243]
[1733441051324,0.03184624,96858.0,96836.0,0.00103243]
[1733441051540,0.03184624,96857.0,96836.0,0.00103243]
[1733441051755,0.03184624,96856.0,96836.0,0.00103243]
[1733441052005,0.03184624,96855.0,96836.0,0.00103243]
[1733441052234,0.03184624,96854.0,96836.0,0.00103243]
[1733441052473,0.0008676,96880.0,96852.0,0.15]
[1733441052679,0.22694259,96960.0,96898.0,0.06257455]
[1733441052922,0.27233111,96981.0,96870.0,0.10503154]
[1733441052923,0.0538039,96955.0,96902.0,0.15]
[1733441053125,0.03201363,96954.0,96907.0,0.15]
[1733441053347,0.03201363,96954.0,96903.0,0.79384718]
[1733441053348,0.03201363,96954.0,96927.0,0.00310909]
[1733441053565,0.09077703,97013.0,96947.0,0.15]
[1733441053805,0.03197209,96979.0,96948.0,0.26903276]
[1733441054103,0.09077703,97037.0,96961.0,0.15]
[1733441054191,0.13616555,97040.0,96962.0,0.10606261]
[1733441054192,0.09077703,97040.0,96962.0,0.10606261]
[1733441054414,0.27233111,97062.0,96943.0,0.00308005]
[1733441054415,0.01163412,97030.0,96944.0,0.15]
[1733441054594,0.10503154,96979.0,96943.0,0.00308005]
[1733441054792,0.10503154,96979.0,96889.0,1.02305159]
[1733441054793,0.10503154,96965.0,96937.0,0.01198195]
[1733441055215,0.10503154,96965.0,96867.0,1.02305159]
[1733441055216,0.10503154,96948.0,96907.0,0.00316284]
[1733441055394,0.10503154,96948.0,96889.0,0.00103184]
[1733441055600,0.03184564,96947.0,96908.0,0.10503154]
[1733441055822,0.09077703,96973.0,96908.0,0.10503154]
[1733441055823,0.10503154,96946.0,96908.0,0.10503154]
[1733441056033,0.1293,96945.0,96908.0,0.10503154]
[1733441056247,0.1293,96945.0,96906.0,0.00416686]
[1733441056248,0.10503154,96944.0,96906.0,0.00313513]
[1733441056672,0.10503154,96944.0,96907.0,0.10503154]
[1733441056869,0.1293,96945.0,96908.0,0.15]
[1733441057097,0.10503154,96944.0,96909.0,0.10606317]
[1733441057524,0.0804,96960.0,96911.0,0.10503154]
[1733441057731,0.10503154,96959.0,96915.0,0.15]
[1733441057939,0.10503154,96959.0,96916.0,0.10606309]
[1733441058358,0.0804,96960.0,96920.0,0.15]
[1733441058568,0.0804,96960.0,96921.0,0.10606304]
[1733441059422,0.18543154,96960.0,96921.0,0.10606304]
[1733441059907,0.10503154,96959.0,96903.0,0.15]
[1733441060170,0.10503154,96959.0,96904.0,0.1060632]
[1733441060406,0.10503154,96959.0,96904.0,0.2560632]
[1733441060598,0.10503154,96959.0,96924.0,0.00308944]
[1733441062493,0.02351991,96958.0,96924.0,0.00308944]
[1733441062712,0.02351991,96958.0,96906.0,0.00103166]
[1733441062713,0.10503154,96957.0,96906.0,0.00103166]
[1733441062920,0.0812676,96960.0,96925.0,0.10503154]
[1733441063141,0.0812676,96960.0,96926.0,0.00103147]
[1733441063356,0.0812676,96960.0,96927.0,0.10503154]
[1733441063569,0.0812676,96960.0,96928.0,0.00103147]
[1733441063788,0.0812676,96960.0,96929.0,0.10503154]
[1733441064008,0.0812676,96960.0,96930.0,0.00103147]
[1733441064230,0.0008676,96960.0,96938.0,0.15]
[1733441064450,0.0008661,96980.0,96955.0,0.15]
[1733441064710,2.177e-05,96980.0,96961.0,0.15]
[1733441064877,2.177e-05,96980.0,96956.0,0.10606263]
[1733441064878,2.177e-05,96980.0,96975.0,0.15]
[1733441065087,2.177e-05,96980.0,96976.0,0.10606245]
[1733441065306,2.177e-05,96980.0,96979.0,0.15]
[1733441065507,2.177e-05,96980.0,96979.0,0.10606239]
[1733441065727,0.03164837,97041.0,96979.0,0.10606239]
[1733441065944,0.10503154,97011.0,96950.0,0.15]
[1733441066148,0.02603757,97040.0,96950.0,0.10503154]
[1733441066149,0.10503154,97001.0,96950.0,0.10503154]
[1733441066352,0.10503154,97001.0,96926.0,0.15]
[1733441066594,0.10503154,97001.0,96953.0,0.00311435]
[1733441066824,0.12313456,97000.0,96914.0,0.15]
[1733441067040,0.12313456,97000.0,96900.0,0.06312518]
[1733441067041,0.10503154,96979.0,96935.0,0.00301528]
[1733441067282,0.10503154,96976.0,96935.0,0.00301528]
[1733441067521,0.10503154,96971.0,96915.0,0.10606299]
[1733441068143,0.10503154,96971.0,96930.0,0.0031088]
[1733441068563,0.01050315,96970.0,96930.0,0.0031088]
[1733441068783,0.13723642,96996.0,96930.0,0.0031088]
[1733441068784,0.10503154,96969.0,96931.0,0.10606313]
[1733441068995,0.09507154,96969.0,96931.0,0.10606313]
[1733441069205,0.09507154,96969.0,96930.0,0.0031088]
[1733441069681,0.09507154,96969.0,96861.0,0.103125]
[1733441069682,0.046875,96929.0,96861.0,0.103125]
[1733441069941,0.046875,96914.0,96862.0,0.10606362]
[1733441070098,0.046875,96908.0,96862.0,0.10606362]
[1733441070307,0.10503154,96907.0,96862.0,0.10606362]
[1733441070513,0.10503154,96907.0,96876.0,0.00313307]
[1733441070976,0.13683341,96954.0,96877.0,0.10503154]
[1733441070977,0.046875,96931.0,96877.0,0.10503154]
[1733441071176,0.10606303,96930.0,96885.0,0.103125]
[1733441071381,0.10606303,96930.0,96886.0,0.10606343]
[1733441073170,0.046875,96954.0,96902.0,0.103125]
[1733441073378,0.046875,96954.0,96890.0,0.023]
[1733441073379,0.10606303,96953.0,96912.0,0.103125]
[1733441073587,0.10606303,96953.0,96913.0,0.10606315]
[1733441074915,0.10606303,96953.0,96907.0,0.015]
[1733441074916,0.0574813,96952.0,96907.0,0.015]
[1733441075113,0.10606303,96951.0,96908.0,0.10503154]
[1733441075546,0.10606303,96951.0,96910.0,0.00306502]
[1733441075547,0.046875,96947.0,96910.0,0.00306502]
[1733441075751,0.10606303,96946.0,96908.0,0.00103179]
[1733441075963,0.10606303,96946.0,96909.0,0.10503154]
[1733441076162,0.10606303,96946.0,96910.0,0.00103174]
[1733441076368,0.10606303,96946.0,96911.0,0.00103174]
[1733441076571,0.10606303,96946.0,96910.0,0.00103174]
[1733441076976,0.00128967,96945.0,96907.0,0.015]
[1733441077183,0.10503154,96944.0,96908.0,0.10554766]
[1733441077394,0.10503154,96944.0,96908.0,0.10503154]
[1733441077395,0.00128967,96943.0,96908.0,0.10503154]
[1733441077603,0.10503154,96942.0,96908.0,0.10503154]
[1733441077815,0.00128968,96941.0,96909.0,0.00051613]
[1733441078045,0.10503154,96940.0,96909.0,0.00316382]
[1733441078225,0.00128968,96939.0,96909.0,0.00316382]
[1733441078475,0.10503154,96938.0,96909.0,0.00316382]
[1733441078680,0.00128968,96937.0,96909.0,0.00367995]
[1733441078902,0.00128968,96937.0,96909.0,0.00316382]
[1733441079140,0.00128968,96937.0,96909.0,0.00367995]
[1733441079934,0.00128968,96952.0,96912.0,0.103125]
[1733441080154,0.1063212,96951.0,96911.0,0.000516]
[1733441080424,0.1063212,96951.0,96912.0,0.20815654]
[1733441080609,0.1063212,96951.0,96913.0,0.00051583]
[1733441080809,0.1063212,96951.0,96914.0,0.10554737]
[1733441081027,0.1063212,96951.0,96909.0,0.00316382]
[1733441081230,0.046875,96947.0,96907.0,0.015]
[1733441081490,0.046875,96939.0,96907.0,0.015]
[1733441081659,0.10632142,96938.0,96907.0,0.015]
[1733441082387,0.00128988,96938.0,96908.0,0.10503154]
[1733441082605,0.04816462,96958.0,96908.0,0.10554765]
[1733441082813,0.13683821,96957.0,96908.0,0.10554765]
[1733441083014,0.03309629,96956.0,96908.0,0.10554765]
[1733441083164,0.13683821,96955.0,96908.0,0.10554765]
[1733441083372,0.05168324,96954.0,96908.0,0.10554765]
[1733441083575,0.13683821,96953.0,96909.0,0.103125]
[1733441083781,0.00128957,96952.0,96910.0,0.10554746]
[1733441084093,0.0008671,96940.0,96910.0,0.10554746]
[1733441084302,0.0008671,96940.0,96924.0,0.103125]
[1733441084504,0.0008671,96940.0,96925.0,0.10503154]
[1733441085480,0.0008671,96940.0,96909.0,0.103125]
[1733441085710,0.0008671,96940.0,96910.0,0.10503154]
[1733441086110,0.0008671,96940.0,96911.0,0.00051591]
[1733441086313,0.0008671,96940.0,96912.0,0.10503154]
[1733441086708,0.0008671,96940.0,96918.0,0.00301145]
[1733441086885,0.0008671,96940.0,96920.0,0.103125]
[1733441087138,0.0008671,96940.0,96924.0,0.103125]
[1733441087330,0.0008671,96940.0,96925.0,0.10503154]
[1733441087985,0.0008671,96940.0,96918.0,0.00301145]
[1733441088188,0.0008671,96940.0,96919.0,0.10503154]
[1733441088946,0.0008671,96940.0,96918.0,0.00301145]
[1733441092112,0.0008671,96940.0,96919.0,0.10554746]
[1733441094363,0.0827,96939.0,96907.0,0.015]
[1733441094577,0.0827,96937.0,96907.0,0.015]
[1733441094784,0.0827,96935.0,96907.0,0.015]
[1733441094997,0.03196185,96934.0,96908.0,0.10554786]
[1733441095213,0.0827,96935.0,96912.0,0.103125]
[1733441095417,0.0827,96935.0,96917.0,0.103125]
[1733441095660,0.0008671,96940.0,96918.0,0.20815654]
[1733441096272,0.08579249,96955.0,96919.0,0.00103156]
[1733441096484,0.03273197,96954.0,96920.0,0.10503154]
[1733441096688,0.0319582,96953.0,96921.0,0.00103156]
[1733441096921,0.00077377,96952.0,96922.0,0.10503154]
[1733441097099,0.0319582,96951.0,96923.0,0.00103156]
[1733441097301,0.00077377,96950.0,96924.0,0.10503154]
[1733441097539,0.00077377,96950.0,96924.0,0.10606309]
[1733441097776,0.00077377,96950.0,96924.0,0.10503154]
[1733441098236,0.13772137,96946.0,96924.0,0.10503154]
[1733441098433,0.00077377,96945.0,96921.0,0.00103166]